Cogmind - Beta 17 @@@ ROGUE MODE // 2026.06.29 @ 18:05:21 Player: Lolterzard Result: Destroyed by G-73 Enforcer with Phase Gun Performance ------------- Evolutions (7) 3500 Regions Visited (11) 2200 Robots Destroyed (103) 515 Value Destroyed (3880) 3880 Prototype IDs (21) 420 Alien Tech Used (0) 0 Bonus (1173) 1173 TOTAL SCORE: 11688 Bonus ------- Follower Combat Kills 819 Met Imprinter 300 Was Imprinted 300 Friendly Fire -246 Cogmind --------- Core Integrity 0/1300 Matter 245/300 Energy 99/100 System Corruption 20% Temperature Cool (9) Movement Core (50) Location -3/Research Parts ------- > --- POWER (2) -------- (None) > --- PROPULSION (5) --- (None) > --- UTILITY (10) ----- (None) > --- WEAPON (4) ------- (None) > --- INVENTORY (5) ---- GAL Module Peak State ------------ > --- POWER ------------ Reinforced Fission Core Particle Reactor > --- PROPULSION ------- Medium Treads Medium Treads Antigrav System Improved Gyrokinetic Inverter > --- UTILITY ---------- Advanced Heat Sink Improved Phase Shifter Cloaking Device Thermal Shield Advanced Point Defense System Hacking Suite Improved Dynamic Insulation System > --- WEAPON ----------- Hardcell Cannon Hardcell Cannon Hardcell Cannon Hardcell Cannon > --- INVENTORY -------- Quantum Rifle Railgun Hardcell Cannon Heavy Gauss Cannon GAL Module [Rating: 105] Favorites ----------- Power Micro Nuclear Core Engine Light Ion Engine Power Core Micro Nuclear Core Reactor Particle Reactor Propulsion Light Treads Treads Light Treads Leg Myomer Leg Wheel Compact Wheel Hover Unit Antigrav System Utility High-capacity Storage Unit Device Advanced Heat Sink Storage High-capacity Storage Unit Processor Core Analyzer Hackware Hacking Suite Protection Makeshift Light Armor Plating Weapon Antimatter Cannon Energy Gun Particle Gun Energy Cannon Cooled Plasma Cannon Ballistic Gun Flak Gun Ballistic Cannon Antimatter Cannon Launcher Grenade Launcher Special Weapon Enhanced Flamer Slashing Weapon Katana Build | -11 -10 -10 -8 -6 -6 -6 -6 -5 -5 -4 -3 ------- Run | Yrd Mat Sub Rec Fac Low Low Zio Pro Fac Fac Res Slots Evolved 14 | . . . . 8 . . . . 2 2 2 Power 1 | . . . . 1 . . . . . . . Propulsion 3 | . . . . 2 . . . . . 1 . Utility 8 | . . . . 4 . . . . 2 . 2 Weapon 2 | . . . . 1 . . . . . 1 . Parts Attached 128 | 8 3 18 . 23 . 3 1 . 9 32 31 Power 12 | 1 1 2 . 3 . . . . 2 2 1 Engine 8 | 1 1 2 . 2 . . . . 2 . . Core 3 | . . . . 1 . . . . . 2 . Reactor 1 | . . . . . . . . . . . 1 Propulsion 33 | 2 . 6 . 5 . . . . 2 8 10 Treads 18 | 2 . 4 . 2 . . . . 2 5 3 Leg 1 | . . . . . . . . . . . 1 Wheel 10 | . . 2 . 3 . . . . . . 5 Hover 4 | . . . . . . . . . . 3 1 Flight . | . . . . . . . . . . . . Utility 42 | 3 2 2 . 8 . 1 1 . 4 11 10 Device 21 | 2 . 1 . 3 . . 1 . 2 7 5 Storage 4 | 1 1 . . 1 . . . . . . 1 Processor 1 | . . . . 1 . . . . . . . Hackware 1 | . . . . . . . . . . . 1 Protection 15 | . 1 1 . 3 . 1 . . 2 4 3 Artifact . | . . . . . . . . . . . . Weapon 41 | 2 . 8 . 7 . 2 . . 1 11 10 Energy Gun 3 | . . . . 1 . . . . . 1 1 Energy Cannon 2 | . . . . 2 . . . . . . . Ballistic Gun 15 | 2 . 2 . . . 1 . . 1 5 4 Ballistic Cannon 16 | . . 1 . 4 . 1 . . . 5 5 Launcher 4 | . . 4 . . . . . . . . . Special Weapon 1 | . . 1 . . . . . . . . . Impact Weapon . | . . . . . . . . . . . . Slashing Weapon . | . . . . . . . . . . . . Piercing Weapon . | . . . . . . . . . . . . Special Melee Weapon . | . . . . . . . . . . . . Unidentified Prototypes 7 | . . 1 . 2 . . 1 . . . 3 Corrupted Parts 3 | . . . . . . . . . 1 1 1 System Corruption 10 | . . . . . . . . . 1 4 5 Parts Lost 105 | . 2 13 . 12 . 6 . . 1 37 34 Power 10 | . 1 2 . 2 . . . . . 3 2 Propulsion 26 | . . 4 . 1 . 2 . . . 9 10 Utility 32 | . 1 1 . 5 . 2 . . . 13 10 Weapon 37 | . . 6 . 4 . 2 . . 1 12 12 Highest Loss Streak 17 | . 1 3 . 8 . 6 . . 1 17 10 To Critical Strikes 4 | . . . . . . 1 . . . 1 2 Average Backups 7 | 3 8 12 5 2 9 6 6 9 9 7 3 Power . | . . . . . . . . . . 1 . Propulsion 1 | 1 3 4 2 . . . . . . . . Utility 2 | . 3 3 2 1 4 3 3 5 3 3 . Weapon 3 | . 1 4 1 1 5 3 3 4 4 2 2 Tool/Special . | . . . . . . . . . . . . Unused Backups 4 | . . 3 . . . . . . 1 . . Power . | . . . . . . . . . . . . Propulsion . | . . . . . . . . . . . . Utility 3 | . . 2 . . . . . . 1 . . Weapon 1 | . . 1 . . . . . . . . . Tool/Special . | . . . . . . . . . . . . Average Slot Usage (%) 74 | . 98 93 83 53 73 64 62 66 83 68 51 Engine 3 | . 12 8 . . . . . . 1 . . Core 3 | . . . . 1 6 6 6 6 5 7 3 Treads 15 | . 28 23 . 4 13 13 13 13 16 14 2 Wheel 3 | . . 4 28 7 13 3 . . . . . Device 12 | . 10 9 . 4 13 12 16 20 24 10 11 Storage 8 | . 14 14 14 5 6 6 6 6 5 3 . Protection 3 | . 3 3 14 3 . 1 . . 10 13 . Energy Gun 1 | . . 1 14 1 . . . . . . 1 Ballistic Gun 5 | . 28 3 11 3 . 4 6 6 5 7 . Ballistic Cannon 8 | . . 2 . 12 20 15 13 13 9 5 12 Launcher 4 | . . 17 . . . . . . . . . Peak Build Rating 105 | 7 8 24 17 66 45 48 45 45 78 98 105 Average Rating 37 | 5 7 11 16 41 45 39 40 45 70 69 70 On Entrance 31 | . 7 8 15 16 45 45 37 45 45 77 39 Avg Prop Armor Cover (%) 11 | 20 . . . 11 14 12 . . . 4 7 Naked Turns 58 | . . . . . . . . . . 24 34 Heaviest Build 114 | 11 46 52 49 80 72 75 71 71 89 114 91 Greatest Support 155 | 40 40 40 28 36 36 50 50 50 119 155 56 Greatest Overweight (x) 25 | 3 1 1 1 3 1 2 1 1 1 25 8 Average Overweight (x) 1 | . . 1 1 2 1 1 1 1 . . 1 Largest Inventory Capacity 20 | 8 20 20 20 20 20 20 20 20 20 20 5 Average Capacity 17 | 7 15 20 20 20 20 20 20 20 20 16 5 Most Carried 20 | 5 13 20 19 17 15 15 16 16 19 18 5 Average Carried 12 | 3 8 16 17 8 15 12 13 16 16 9 4 Final Capacity 20 | 8 20 20 20 20 20 20 20 20 20 5 5 Final Carried 19 | 5 13 19 17 15 15 12 16 16 19 5 1 Transmogrified Parts 4 | . . 4 . . . . . . . . . Integrity Recovered 21 | . . 21 . . . . . . . . . Class Distribution -------------------- 43% | Mutant 35% | Gunner 13% | Tank 6% | Scavenger-Tank Dominant Class ---------------- Mutant | -10/Materials Mutant | -10/Subcaves Mutant | -8/Recycling Gunner | -6/Factory Gunner | -6/Lower Caves Gunner | -6/Lower Caves Gunner | -6/Zion Gunner | -5/Proximity Caves Tank | -5/Factory Scavenger-Tank | -4/Factory Tank | -3/Research Resources | -11 -10 -10 -8 -6 -6 -6 -6 -5 -5 -4 -3 ----------- Run | Yrd Mat Sub Rec Fac Low Low Zio Pro Fac Fac Res Matter Collected 5552 | 290 213 794 57 682 216 226 158 46 532 1138 1200 Remotely 2641 | . . 418 . 102 216 226 158 46 532 943 . Salvage Created 3638 | 135 388 303 57 672 38 75 . 59 607 679 625 Parts 182 | 13 27 29 2 28 1 . . 2 25 28 27 Haulers Intercepted 4 | . 2 . . 2 . . . . . . . Recyclers Shooed 2 | . 1 . . . . . . . 1 . . Parts Field Recycled . | . . . . . . . . . . . . Retrieved Matter . | . . . . . . . . . . . . Parts Self-Destructed 31 | . . 15 . . 1 . . 15 . . . Prevented 1 | . . . . . . . . 1 . . . Parts Restored . | . . . . . . . . . . . . Kills | -11 -10 -10 -8 -6 -6 -6 -6 -5 -5 -4 -3 ------- Run | Yrd Mat Sub Rec Fac Low Low Zio Pro Fac Fac Res Combat Hostiles Destroyed 73 | . 11 15 1 12 4 4 . . 8 12 6 Guns 27 | . 11 2 1 2 . 1 . . 2 7 1 Cannons 34 | . . 2 . 10 4 3 . . 6 4 5 AOE 12 | . . 11 . . . . . . . 1 . Classes Destroyed 19 | 3 4 1 1 4 1 . . 1 1 2 1 Worker 3 | 1 . . . . . . . . 1 . 1 Builder 4 | . . . . . . . . . 1 2 1 Tunneler 2 | 2 . . . . . . . . . . . Hauler 4 | . 2 . . 2 . . . . . . . Recycler 7 | 1 1 . . 1 . . . . 2 . 2 Mechanic 2 | . . . . . . . . . . . 2 Operator 1 | . . . . 1 . . . . . . . Watcher 6 | . 1 . . 1 . . . . 1 2 1 Swarmer 18 | . 9 3 . 5 . . . . . 1 . Grunt 17 | . 2 . . 3 3 3 . . 5 1 . Brawler 3 | . . . . . 1 1 . . . 1 . Duelist 2 | . . . . 1 . . . . . 1 . Sentry 4 | . . . 1 1 . . . . . 1 1 Specialist 1 | . . . . . . . . . . 1 . Hunter 10 | . . . . 1 . . . . 1 4 4 Programmer 5 | . . . . 1 . . . . 2 1 1 Heavy 1 | . . . . . . . . . . 1 . Subdweller 12 | . . 12 . . . . . . . . . Mutant 1 | . . . . . . . . 1 . . . Best Kill Streak 5 | 4 4 2 1 4 4 3 . . 5 4 2 Combat Bots Only 5 | . 3 2 1 4 4 3 . . 5 4 1 Max Kills in Single Turn 3 | 1 2 2 1 1 1 1 . 1 1 3 2 Gunslinging 1 | . 1 . . . . . . . . . . Exploded 2 | . . 2 . . . . . . . 1 . Melee . | . . . . . . . . . . . . Uniques/NPCs Destroyed . | . . . . . . . . . . . . Combat | -11 -10 -10 -8 -6 -6 -6 -6 -5 -5 -4 -3 -------- Run | Yrd Mat Sub Rec Fac Low Low Zio Pro Fac Fac Res Hostile Shots Fired 1536 | . 69 165 4 250 29 27 . 8 81 480 423 Missed 480 | . 15 63 1 81 10 5 . 3 26 123 153 Hits 1056 | . 54 102 3 169 19 22 . 5 55 357 270 Melee 12 | . . . . 4 . 2 . . . 6 . Projectile 1044 | . 54 102 3 165 19 20 . 5 55 351 270 AOE 12 | . . 1 . 3 . . . . . 8 . Critical Strikes 46 | . . 4 . 5 . 1 . 1 5 17 13 Actively Blocked 1 | . . . . . . . . . . . 1 Part Disruptions 1 | . . . . . . . . . . . 1 Damage Taken 18831 | . 498 1568 45 3046 361 450 . 96 810 7015 4942 Core 3296 | . 136 100 13 379 76 19 . . 125 1145 1303 Absorbed by Shields 501 | . . . . . . . . . 206 295 . Redirected to Shielding 343 | . 12 42 . . . . . . 1 17 271 Ignored by Resistances 12 | . . . . . . . . . . . 12 Regen/Repaired (Parts) 457 | . . . . . . . 229 . . . 228 Core Remaining (%) 46 | 100 . . . . . . . 44 87 . . Volleys Fired 360 | 10 65 58 9 55 19 13 . 3 33 52 43 Largest 4 | 2 2 2 2 3 3 3 . 3 3 4 4 Hottest 220 | 40 40 65 85 105 99 106 . 101 106 164 220 Shots Fired 915 | 20 130 105 12 146 57 37 . 8 81 175 144 Gun 434 | 20 130 28 6 65 . 4 . 2 30 129 20 Cannon 426 | . . 28 . 81 57 33 . 6 51 46 124 Launcher 45 | . . 45 . . . . . . . . . Special 10 | . . 4 6 . . . . . . . . Kinetic 801 | 20 130 55 3 109 57 37 . 8 81 162 139 Thermal 56 | . . 5 9 37 . . . . . . 5 Explosive 45 | . . 45 . . . . . . . . . Electromagnetic 13 | . . . . . . . . . . 13 . Robot Hit Streak 20 | 5 8 14 9 20 7 7 . 4 9 13 5 Robot Miss Streak 12 | 1 7 2 2 6 3 12 . 5 6 8 6 Penetration Max 1 | . . . . . . . . . 1 1 1 Secondary Targets 7 | . 2 . . . . . . . . 4 1 Max Gunslinging Chain 1 | . 1 . . . . . . . . 1 1 Shots Hit Robots 531 | 14 72 56 9 79 24 24 . 6 52 123 72 Core Hits 272 | 8 30 24 4 36 7 12 . 4 28 84 35 Critical Kills 2 | . . 1 . . . . . . . . 1 Critical Parts Destroyed . | . . . . . . . . . . . . Critical Strikes 19 | . . 1 . 3 . 1 . 1 4 2 7 Burn 1 | . . . . 1 . . . . . . . Destroy 2 | . . 1 . . . . . . . . 1 Blast 16 | . . . . 2 . 1 . 1 4 2 6 Melee Attacks . | . . . . . . . . . . . . Impact . | . . . . . . . . . . . . Slashing . | . . . . . . . . . . . . Piercing . | . . . . . . . . . . . . Sneak Attacks . | . . . . . . . . . . . . Combat Hostiles . | . . . . . . . . . . . . Follow-up Attacks . | . . . . . . . . . . . . Damage Inflicted 13106 | 124 608 1877 81 1704 975 726 . 185 1441 2941 2444 Guns 4110 | 124 608 252 68 470 . 29 . 31 524 1620 384 Cannons 7250 | . . 310 . 1167 975 697 . 154 892 1018 2037 Explosions 1613 | . . 1315 . . . . . . . 298 . Melee . | . . . . . . . . . . . . Ramming 120 | . . . . 67 . . . . 25 5 23 Kinetic 10518 | 124 608 547 26 1134 975 726 . 185 1416 2497 2280 Thermal 714 | . . 15 55 503 . . . . . . 141 Explosive 1613 | . . 1315 . . . . . . . 298 . Electromagnetic 141 | . . . . . . . . . . 141 . Impact . | . . . . . . . . . . . . Slashing . | . . . . . . . . . . . . Piercing . | . . . . . . . . . . . . Highest Corruption 20 | . . . . . . 7 7 . 1 8 20 Average Corruption 4 | . . . . . . 6 7 . 1 5 5 Corruption Purged . | . . . . . . . . . . . . Corruption Blocked . | . . . . . . . . . . . . Effects 51 | . . . . . . 8 2 . 1 26 14 Message Errors 7 | . . . . . . . 1 . . 2 4 Matter Fused 13 | . . . . . . 3 . . 1 5 4 Heat Flow Errors 5 | . . . . . . . . . . 4 1 Energy Discharges 7 | . . . . . . 2 . . . 5 . Parts Rejected 2 | . . . . . . . . . . 2 . Data Loss (minor) 6 | . . . . . . . 1 . . 3 2 Data Loss (major) 5 | . . . . . . 1 . . . 3 1 Misfires 2 | . . . . . . . . . . 1 1 Alerts 1 | . . . . . . 1 . . . . . Weapon Failures 3 | . . . . . . 1 . . . 1 1 Overload Shots . | . . . . . . . . . . . . Overflow Damage 268 | . . 36 . 44 26 7 . . 56 42 57 Projectiles 232 | . . . . 44 26 7 . . 56 42 57 Explosions 36 | . . 36 . . . . . . . . . Melee . | . . . . . . . . . . . . Knockbacks 48 | . . 1 . 4 3 4 . . 8 4 24 Impact . | . . . . . . . . . . . . Kinetic 46 | . . 1 . 4 3 4 . . 8 4 22 Secondary 2 | . . . . . . . . . . . 2 Self-Inflicted Damage 265 | . . 130 . 32 . . . . . 98 5 Shots 7 | . . 6 . . . . . . . 1 . Rammed 16 | . 1 . . 8 . . . . 2 1 4 Targets Rammed 16 | . 1 . . 8 . . . . 2 1 4 Kicked . | . . . . . . . . . . . . Crushed . | . . . . . . . . . . . . Highest Temperature 575 | . 30 457 77 403 2 . . 2 22 502 575 Average Temperature 124 | . 13 224 37 86 2 . . 2 4 135 144 Received Heat Transfer 4285 | . 84 1279 9 768 171 180 . 54 285 1253 202 Effects 29 | . . 4 . 5 . . . . . 10 10 Shutdowns 7 | . . . . . . . . . . 5 2 Energy Bleed 3 | . . . . . . . . . . 3 . Interference 9 | . . 4 . 1 . . . . . 1 3 Matter Decay 2 | . . . . . . . . . . 1 1 Short Circuit 4 | . . . . 2 . . . . . . 2 Damage (minor) 2 | . . . . . . . . . . . 2 Damage (major) 2 | . . . . 2 . . . . . . . Siege Activations . | . . . . . . . . . . . . Martial Activations . | . . . . . . . . . . . . Shielding Activations . | . . . . . . . . . . . . Robots Disrupted 1 | . . . . . . . . . . 1 . Combat Hostiles 1 | . . . . . . . . . . 1 . Robots Corrupted . | . . . . . . . . . . . . Combat Hostiles . | . . . . . . . . . . . . Parts Fried . | . . . . . . . . . . . . Impact Corruptions . | . . . . . . . . . . . . Robots Melted . | . . . . . . . . . . . . Combat Hostiles . | . . . . . . . . . . . . Parts Melted 1 | . . . . 1 . . . . . . . Heat Transferred 1474 | . . 37 186 1103 . . . . . . 148 Parts Sabotaged . | . . . . . . . . . . . . Parts Stolen . | . . . . . . . . . . . . Parts Stripped . | . . . . . . . . . . . . Power Chain Reactions . | . . . . . . . . . . . . Alert | -11 -10 -10 -8 -6 -6 -6 -6 -5 -5 -4 -3 ------- Run | Yrd Mat Sub Rec Fac Low Low Zio Pro Fac Fac Res Maximum Alert Level 1 | . . . . . . . . . . 1 . Low Security (%) 99 | 100 100 . 100 100 . . . . 100 95 100 Level 1 . | . . . . . . . . . . 4 . Level 2 . | . . . . . . . . . . . . Level 3 . | . . . . . . . . . . . . Level 4 . | . . . . . . . . . . . . Level 5 . | . . . . . . . . . . . . High Security . | . . . . . . . . . . . . Max Security . | . . . . . . . . . . . . Peak Influence 227 | 10 147 . 30 87 . . . . 173 227 169 Initial 81 | . . . 30 50 . . . . 31 81 7 Average 45 | 1 62 . 6 25 . . . . 42 70 48 Influence Increases 3386 | 20 321 180 20 490 135 105 . 309 367 786 653 Destroy 0b10 Robot/C 1580 | . 220 60 20 240 80 80 . 160 160 340 220 Destroy 0b10 Robot/NC 165 | 20 20 . . 25 . . . 10 30 20 40 Destroy Leader 362 | . 46 . . 46 10 10 . 20 34 124 72 Allied During Kill 174 | . . . . . . . . 119 5 27 23 Successful Hack 97 | . 5 . . 46 . . . . 14 . 32 Disable Machine 135 | . . . . . . . . . 30 60 45 Destroy Structure 298 | . . . . 38 . . . . 34 140 86 Advance Influence 50 | . . . . 50 . . . . . . . Lose Combat Pursuer 525 | . 30 120 . 45 45 15 . . 60 75 135 Influence Decreases 3348 | 20 312 126 83 448 177 105 . 259 250 938 630 Entered New Map 167 | . . 5 33 . 16 . . . 19 86 8 Time Decay 2217 | 20 292 108 50 348 155 85 . 239 201 427 292 Lost Part 838 | . 20 13 . 100 . 20 . . 10 365 310 Lost Ally 126 | . . . . . 6 . . 20 20 60 20 Squads Dispatched 18 | . . . . 3 . . . . 2 9 4 Investigation 3 | . . . . 1 . . . . . 1 1 Extermination 7 | . . . . 2 . . . . 1 2 2 Reinforcement 5 | . . . . . . . . . 1 3 1 Assault . | . . . . . . . . . . . . Garrison 3 | . . . . . . . . . . 3 . Intercept . | . . . . . . . . . . . . Searches Triggered . | . . . . . . . . . . . . Construction Impeded 2 | . . . . . . . . . 1 . 1 Haulers Reinforced . | . . . . . . . . . . . . Active Scanning Responses . | . . . . . . . . . . . . Cargo Convoy Interrupts . | . . . . . . . . . . . . Stealth | -11 -10 -10 -8 -6 -6 -6 -6 -5 -5 -4 -3 --------- Run | Yrd Mat Sub Rec Fac Low Low Zio Pro Fac Fac Res Distress Signals 2 | . . . . . . . . . 1 1 . Communications Jammed . | . . . . . . . . . . . . Distress Signals . | . . . . . . . . . . . . Times Spotted 155 | . 15 18 1 22 7 5 . 8 17 33 29 Peak Tracking Total 6 | . 3 4 1 6 4 4 . 3 5 5 6 Tactical Retreats 21 | . 2 3 . 2 1 1 . . 3 4 5 Traps | -11 -10 -10 -8 -6 -6 -6 -6 -5 -5 -4 -3 ------- Run | Yrd Mat Sub Rec Fac Low Low Zio Pro Fac Fac Res Traps Triggered 6 | . . 1 . 1 . . . . 1 2 1 Indirectly . | . . . . . . . . . . . . Trap Hack Attempts . | . . . . . . . . . . . . Triggered . | . . . . . . . . . . . . Disarmed . | . . . . . . . . . . . . Reprogrammed . | . . . . . . . . . . . . Reused . | . . . . . . . . . . . . Traps Extracted . | . . . . . . . . . . . . Installed . | . . . . . . . . . . . . Triggered . | . . . . . . . . . . . . Machines | -11 -10 -10 -8 -6 -6 -6 -6 -5 -5 -4 -3 ---------- Run | Yrd Mat Sub Rec Fac Low Low Zio Pro Fac Fac Res Machines Disabled 10 | . . 1 . . . . . . 2 4 3 Max in Single Turn 1 | . . 1 . . . . . . 1 1 1 Machines Repaired . | . . . . . . . . . . . . Machines Dismantled . | . . . . . . . . . . . . Machines Sabotaged . | . . . . . . . . . . . . Overloaded Fab Kills . | . . . . . . . . . . . . Hacking | -11 -10 -10 -8 -6 -6 -6 -6 -5 -5 -4 -3 --------- Run | Yrd Mat Sub Rec Fac Low Low Zio Pro Fac Fac Res Machines Accessed 13 | . 1 2 1 4 . . . . 1 1 3 Terminals 5 | . 1 . . 3 . . . . . . 1 Fabricators 3 | . . . . 1 . . . . 1 1 . Repair Stations 1 | . . . . . . . . . . . 1 Recycling Units 2 | . . . 1 . . . . . . . 1 Scanalyzers . | . . . . . . . . . . . . Garrison Access . | . . . . . . . . . . . . Total Hacks 35 | . 4 14 3 6 . . . . 1 2 5 Successful 25 | . 1 14 2 3 . . . . 1 . 4 Failed 10 | . 3 . 1 3 . . . . . 2 1 Catastrophic 2 | . 1 . 1 . . . . . . . . Database Lockouts . | . . . . . . . . . . . . Manual 19 | . 2 . . . . . 5 . 4 6 2 Terminals 10 | . 4 . . 5 . . . . . . 1 Fabricators 4 | . . . . 1 . . . . 1 2 . Repair Stations 3 | . . . . . . . . . . . 3 Recycling Units 4 | . . . 3 . . . . . . . 1 Scanalyzers . | . . . . . . . . . . . . Garrison Access . | . . . . . . . . . . . . Terminal Hacks 18 | . 1 14 . 2 . . . . . . 1 Record 13 | . . 13 . . . . . . . . . Open DSF 1 | . . . . . . . . . . . 1 Hauler Manifests 2 | . 1 . . 1 . . . . . . . Registered Components 1 | . . . . 1 . . . . . . . Proto ID Catalog 1 | . . 1 . . . . . . . . . Fabricator Hacks 2 | . . . . 1 . . . . 1 . . Build 2 | . . . . 1 . . . . 1 . . Repair Station Hacks 3 | . . . . . . . . . . . 3 Scan Component 2 | . . . . . . . . . . . 2 Repair 1 | . . . . . . . . . . . 1 Recycling Unit Hacks 2 | . . . 2 . . . . . . . . Retrieve Components 2 | . . . 2 . . . . . . . . Scanalyzer . | . . . . . . . . . . . . Garrison Access Hacks . | . . . . . . . . . . . . Unauthorized Hacks . | . . . . . . . . . . . . Terminals . | . . . . . . . . . . . . Fabricators . | . . . . . . . . . . . . Repair Stations . | . . . . . . . . . . . . Recycling Units . | . . . . . . . . . . . . Scanalyzers . | . . . . . . . . . . . . Garrison Access . | . . . . . . . . . . . . Data Cores Recovered 1 | . . . . 1 . . . . . . . Used 1 | . . . . 1 . . . . . . . Hacking Detections 8 | . 1 . 1 2 . . . . . 1 3 Full Trace Events 3 | . 1 . 1 . . . . . . . 1 Feedback Events . | . . . . . . . . . . . . Feedback Blocked . | . . . . . . . . . . . . Robot Schematics Acquired 3 | . . . . . . . 3 . . . . Robots Built 1 | . . . . 1 . . . . . . . Authchips . | . . . . . . . . . . . . Time 58 | . . . . 58 . . . . . . . Total Robot Build Rating 3 | . . . . 3 . . . . . . . Part Schematics Acquired 14 | . . . . . . . 14 . . . . Parts Built 2 | . . . . . . . . . 2 . . Authchips . | . . . . . . . . . . . . Time 64 | . . . . . . . . . 64 . . Total Part Build Rating 16 | . . . . . . . . . 16 . . Part Studies Acquired . | . . . . . . . . . . . . Parts Repaired 1 | . . . . . . . . . . . 1 Time 28 | . . . . . . . . . . . 28 Parts Recycled . | . . . . . . . . . . . . Recycled Matter . | . . . . . . . . . . . . Retrieved Matter . | . . . . . . . . . . . . Retrieved Components . | . . . . . . . . . . . . Parts Scanalyzed . | . . . . . . . . . . . . Part Schematics Acquired . | . . . . . . . . . . . . Parts Damaged . | . . . . . . . . . . . . Bothacking | -11 -10 -10 -8 -6 -6 -6 -6 -5 -5 -4 -3 ------------ Run | Yrd Mat Sub Rec Fac Low Low Zio Pro Fac Fac Res Used RIF Installer . | . . . . . . . . . . . . Robots Hacked . | . . . . . . . . . . . . Non-combat . | . . . . . . . . . . . . Combat . | . . . . . . . . . . . . Robot Hacks Applied . | . . . . . . . . . . . . Relay Couplers Released . | . . . . . . . . . . . . Fabnet Peak Effective % . | . . . . . . . . . . . . Robots Rewired . | . . . . . . . . . . . . Allies Hacked . | . . . . . . . . . . . . Hacks Repelled . | . . . . . . . . . . . . Allies | -11 -10 -10 -8 -6 -6 -6 -6 -5 -5 -4 -3 -------- Run | Yrd Mat Sub Rec Fac Low Low Zio Pro Fac Fac Res Total Allies 16 | . . . . 1 . . 6 . 1 6 2 Largest Group 6 | . . . . 1 1 . 6 5 3 3 2 Highest-Rated Group 349 | . . . . 23 23 . 349 312 112 243 206 Highest-Rated Ally 103 | . . . . 23 23 . 96 96 41 103 103 Zionite Dispatches 5 | . . . . . . . . . 1 3 1 Heavy 2 | . . . . . . . . . . 1 1 Hacker 1 | . . . . . . . . . . 1 . Demo 1 | . . . . . . . . . . 1 . Thermal Resupply 1 | . . . . . . . . . 1 . . Total Orders . | . . . . . . . . . . . . Ally Attacks 75 | . . . . . . . . 36 6 17 16 Total Damage 3798 | . . . . . . . . 1017 145 1573 1063 Kills 23 | . . . . . . . . 10 1 6 6 Allies Corrupted 2 | . . . . . . . . . 1 . 1 Allies Melted . | . . . . . . . . . . . . Intel | -11 -10 -10 -8 -6 -6 -6 -6 -5 -5 -4 -3 ------- Run | Yrd Mat Sub Rec Fac Low Low Zio Pro Fac Fac Res Active Infowar (turns) 713 | 8 575 . . . . . . . . . 130 Seismic 583 | 8 575 . . . . . . . . . . Cloaking 130 | . . . . . . . . . . . 130 Robot Analysis Total . | . . . . . . . . . . . . Derelict Logs Recovered 3 | . . 1 . . 1 1 . . . . . Drone Launches . | . . . . . . . . . . . . Drone Recoveries . | . . . . . . . . . . . . Exploration | -11 -10 -10 -8 -6 -6 -6 -6 -5 -5 -4 -3 ------------- Run | Yrd Mat Sub Rec Fac Low Low Zio Pro Fac Fac Res Turns Passed 13598 | 149 765 3689 248 1390 419 398 2207 1027 941 1117 1248 Spaces Moved 6629 | 69 278 1706 203 891 306 178 934 424 400 593 647 Core 206 | 28 . . . . . . . . . 47 131 Treads 3763 | 41 278 1190 . . . 113 934 424 400 348 35 Legs 5 | . . . . . . . . . . . 5 Wheels 2095 | . . 516 203 891 306 65 . . . . 114 Hover 560 | . . . . . . . . . . 198 362 Flight . | . . . . . . . . . . . . Fastest Speed 50 | 50 160 105 110 85 117 117 232 232 158 50 50 Average Speed 175 | 155 206 202 110 115 117 194 232 232 183 139 125 Slowest Speed 1300 | 200 240 250 110 140 117 232 232 232 238 1300 310 Overloaded Moves . | . . . . . . . . . . . . Propulsion Burnouts . | . . . . . . . . . . . . Robots Hopped 1 | . . . . . . . 1 . . . . Potential Cave-ins 3 | . . . . . 3 . . . . . . Cave-ins Triggered . | . . . . . . . . . . . . Exploration Rate (%) 37 | 4 57 68 44 20 47 37 89 49 9 15 15 Regions Visited 11 Branch Regions 6 Pre-discovered Areas 1 | . . 1 . . . . . . . . . Known Exits Taken 4 | . . . . 1 1 1 . 1 . . . Unknown Exits Taken 7 | 1 1 1 1 . . . 1 . 1 1 . Scrap Searched 10 | . . 4 . . 1 1 4 . . . . Spaces Dug 30 | . . 14 . . 15 . . . 1 . . Terrain Destroyed 401 | . . 209 . 40 29 11 . 1 17 55 39 Melee . | . . . . . . . . . . . . Projectile 164 | . . . . 40 29 11 . 1 17 27 39 AOE 237 | . . 209 . . . . . . . 28 . Terrain Rammed . | . . . . . . . . . . . . Walls Destroyed . | . . . . . . . . . . . . Machines Disabled . | . . . . . . . . . . . . Actions | -11 -10 -10 -8 -6 -6 -6 -6 -5 -5 -4 -3 --------- Run | Yrd Mat Sub Rec Fac Low Low Zio Pro Fac Fac Res Total 7884 | 91 365 1835 217 1141 324 202 974 462 536 770 967 Wait 624 | . 10 23 . 141 . 8 36 36 83 58 229 Move 6616 | 68 277 1705 202 890 305 177 931 423 399 592 647 Hop 1 | . . . . . . . 1 . . . . Pick Up 71 | 5 9 18 1 11 . . 5 . 7 12 3 Fast Attach 73 | 7 . 3 . 17 . 1 . . 5 13 27 Attach 62 | . 2 13 2 7 . 3 1 . 3 24 7 Detach 5 | . . . . 1 . . . . . 3 1 Swap 16 | 1 1 6 . . . . . . 1 5 2 Drop 37 | . . 9 2 9 . . . . 3 10 4 Fire 360 | 10 65 58 9 55 19 13 . 3 33 52 43 Melee . | . . . . . . . . . . . . Ram 11 | . . . . 8 . . . . . 1 2 Kick . | . . . . . . . . . . . . Crush 5 | . 1 . . . . . . . 2 . 2 Escape Stasis . | . . . . . . . . . . . . Rewire 1 | . . . 1 . . . . . . . . Trap . | . . . . . . . . . . . . Miscellaneous 2 | . . . . 2 . . . . . . . Route ------- -11/Scrapyard -10/Materials (discovered 2 exits: [*Mat] / *Sub) -10/Subcaves -8/Recycling -6/Factory (discovered 5 exits: Fac x4 / *Low) -6/Lower Caves -6/Lower Caves (discovered 2 exits: *Fac / *Zio) -6/Zion -5/Proximity Caves -5/Factory -4/Factory -3/Research History --------- Turn | Location | Event 7 | -11/Scrapyard | Discovered new exit (range 16) 150 | -11/Scrapyard | Entered Materials 313 | -10/Materials | Build established: Mutant 732 | -10/Materials | Core integrity fell below 50% 782 | -10/Materials | Discovered new exit (range 15) 912 | -10/Materials | Discovered new exit (range 2) 915 | -10/Materials | Entered Subcaves 916 | -10/Subcaves | Approached by a straggling Scientist 1135 | -10/Subcaves | Shifting Twisted Machinery released Multitool 1135 | -10/Subcaves | Shifting Twisted Machinery released Spk. Treads 1208 | -10/Subcaves | Visited Clippyterm 1215 | -10/Subcaves | Learned 40 Factory zone layouts 1215 | -10/Subcaves | Learned location of Extension (-4) 1456 | -10/Subcaves | A swath of the cavern ceiling suddenly collapsed 1487 | -10/Subcaves | Ambushed by angry Subdweller bent on revenge 1792 | -10/Subcaves | Ambushed by Subdweller buried in earth 1820 | -10/Subcaves | Lost 3 parts (1p1n1u) 2791 | -10/Subcaves | Shifting Twisted Machinery released Battle Rifle 2797 | -10/Subcaves | Shifting Twisted Machinery released Battle Cannon 3099 | -10/Subcaves | Learned Materials terminal intel 3332 | -10/Subcaves | Lost 3 parts (1p2w) 3976 | -10/Subcaves | Visited 4L-MR0's lab 3993 | -10/Subcaves | Found Prototype Device 3993 | -10/Subcaves | Identified Sfc. Transmogrifier 4028 | -10/Subcaves | Found Maxwheels 4587 | -10/Subcaves | Discovered new exit (range 12) 4588 | -10/Subcaves | Core integrity fell below 20% 4604 | -10/Subcaves | Entered Recycling 4847 | -8/Recycling | Discovered new exit (range 6) 4852 | -8/Recycling | Entered Factory 4852 | -6/Factory | Evolved 8 slots: Power x1, Propulsion x2, Utility x4, Weapon x1 4853 | -6/Factory | Identified exit to Factory 4853 | -6/Factory | Identified exit to Lower Caves 4855 | -6/Factory | Attached Maxwheels, gained temporary slots: Weapon x2 5152 | -6/Factory | Build established: Tank 5276 | -6/Factory | Lost 4 parts (1u3w) 5289 | -6/Factory | Spotted B-75 Beast 5411 | -6/Factory | Lost 8 parts (2p1n4u1w) 5658 | -6/Factory | Build established: Gunner 5699 | -6/Factory | Fabricated M-28 Smith (x1) 6242 | -6/Factory | Entered Lower Caves 6242 | -6/Lower Caves | Accompanied by 1 ally 6254 | -6/Lower Caves | Identified exit to Lower Caves 6345 | -6/Lower Caves | Core integrity fell below 50% 6661 | -6/Lower Caves | Entered another Lower Caves area 6682 | -6/Lower Caves | Discovered exit to Factory (range 10) 6810 | -6/Lower Caves | Lost 6 parts (2n2u2w) 7018 | -6/Lower Caves | Identified exit to Zion 7059 | -6/Lower Caves | Entered Zion 7138 | -6/Zion | System corruption cleaned by Quarantine Array 7382 | -6/Zion | Received a visual enhancement algorithm 7384 | -6/Zion | Ran a visual enhancement algorithm 7561 | -6/Zion | Found GAL Module 7665 | -6/Zion | Met Imprinter 7704 | -6/Zion | Imprinted 7706 | -6/Zion | Declared Zion's savior 8203 | -6/Zion | Found Prototype Device 8204 | -6/Zion | Identified Mobile Refinery Mk. CCLXVII 8314 | -6/Zion | Given A8's code to call for help 8743 | -6/Zion | Enhanced Grunt warped into view, answering call for help 8746 | -6/Zion | Enhanced Grunt warped into view, answering call for help 8793 | -6/Zion | Ran a visual enhancement algorithm 9176 | -6/Zion | Discovered new exit (range 15) 9266 | -6/Zion | Entered Proximity Caves 9266 | -5/Proximity Caves | Accompanied by 5 allies 10209 | -5/Proximity Caves | Discovered exit to Factory (range 9) 10241 | -5/Proximity Caves | Attracted the attention of an 0b10 checkpoint 10293 | -5/Proximity Caves | Entered Factory 10293 | -5/Factory | Accompanied by 2 allies 10293 | -5/Factory | Evolved 2 slots: Utility x2 10584 | -5/Factory | Build established: Tank 10702 | -5/Factory | Fabricated Adv. Point Defense System (x2) 10791 | -5/Factory | Zion Thermal Resupply teleported in 10896 | -5/Factory | Lost 3 allies 11061 | -5/Factory | Discovered new exit (range 7) 11234 | -5/Factory | Entered another Factory area 11234 | -4/Factory | Evolved 2 slots: Propulsion x1, Weapon x1 11372 | -4/Factory | Garrison activated, responded to threat 11437 | -4/Factory | Lost 6 parts (1n2u3w) 11551 | -4/Factory | Zion Hacker squad teleported in 11680 | -4/Factory | Lost 3 parts (1u2w) 11760 | -4/Factory | Zion Heavy squad teleported in 11929 | -4/Factory | Lost 3 parts (1n2u) 12016 | -4/Factory | Lost 5 parts (2n3u) 12098 | -4/Factory | Core integrity fell below 50% 12122 | -4/Factory | Core integrity fell below 20% 12128 | -4/Factory | Lost 17 parts (2p4n4u7w) 12160 | -4/Factory | Zion Demo squad teleported in 12211 | -4/Factory | Lost 3 parts (1p1n1u) 12317 | -4/Factory | Discovered new exit (range 15) 12326 | -4/Factory | Build established: Mutant 12351 | -4/Factory | Entered Research 12351 | -3/Research | Evolved 2 slots: Utility x2 12461 | -3/Research | Zion Heavy squad teleported in 12715 | -3/Research | Repaired Rnf. Fission Core 12736 | -3/Research | Build established: Tank 12913 | -3/Research | Found Prototype Protection 12913 | -3/Research | Identified Zio. Weapon Casing 13274 | -3/Research | Found Prototype Protection 13274 | -3/Research | Identified Zio. Heavy Carapace 13285 | -3/Research | Found Zio. Weapon Casing 13319 | -3/Research | Lost 10 parts (1p3n4u2w) 13442 | -3/Research | Lost 10 parts (1p1n3u5w) 13481 | -3/Research | System corruption reached 10% 13490 | -3/Research | Core integrity fell below 50% 13519 | -3/Research | Core integrity fell below 20% 13583 | -3/Research | Lost 10 parts (5n5w) 13599 | -3/Research | Destroyed by G-73 Enforcer with Phase Gun Last Messages --------------- 13529_ Acquired 90 matter. 13532_ Wheel destroyed. 13539_ System corrupted: Component data lost. 13540_ Connecting with DSF Access... 13548_ K-01 Serf collects debris. 13551_ Acquired Wheel. 13552_ K-01 Serf collects debris. 13552_ Wheel destroyed. 13564_ System corrupted: Matter fused (-8). 13564_ Triggered Segregator Trap. 13564_ Arcs of energy rise from the floor. 13564_ Hacking Suite blown off. 13566_ U-05 Engineer lays Concrete. 13579_ System corrupted: Substantial component data lost. 13583_ Slammed into K-01 Serf. 13591_ Acquired Adv. Medium Treads. 13592_ Dropped Adv. Medium Treads. 13595_ B